Cogmind - Beta 13 @@@ ROGUE MODE // 2024.05.02 @ 16:14:59 Player: ElectroBlueGuy Result: Destroyed by G-34 Mercenary with Small Laser Performance ------------- Evolutions (0) 0 Regions Visited (1) 200 Robots Destroyed (18) 90 Value Destroyed (390) 390 Prototype IDs (0) 0 Alien Tech Used (0) 0 Bonus (0) 0 TOTAL SCORE: 680 Bonus ------- None Cogmind --------- Core Integrity 0/250 Matter 36/300 Energy 113/125 System Corruption 0% Temperature Hot (279) Movement Core (150) Ox2 Location -10/Materials Parts ------- > --- POWER (1) -------- Light Ion Engine > --- PROPULSION (2) --- (None) > --- UTILITY (2) ------ Structural Scanner Signal Interpreter > --- WEAPON (2) ------- Beam Cannon > --- INVENTORY (5) ---- Large Storage Unit Large Matter Pod (0) Targeting Computer Backup Plating I Peak State ------------ > --- POWER ------------ Light Ion Engine > --- PROPULSION ------- Aluminum Leg Aluminum Leg > --- UTILITY ---------- Large Storage Unit Large Matter Pod > --- WEAPON ----------- Light Assault Rifle Grenade Launcher > --- INVENTORY -------- Small Laser [Rating: 7] Favorites ----------- Power Light Ion Engine Engine Light Ion Engine Propulsion Aluminum Leg Leg Aluminum Leg Utility Large Matter Pod Device Structural Scanner Storage Large Matter Pod Processor Signal Interpreter Protection Core Shielding Weapon Light Assault Rifle Energy Gun Small Laser Energy Cannon Beam Cannon Ballistic Gun Light Assault Rifle Launcher Grenade Launcher Build | -11 -10 ------- Run | Yrd Mat Slots Evolved . | . . Power . | . . Propulsion . | . . Utility . | . . Weapon . | . . Parts Attached 16 | 5 11 Power 1 | 1 . Engine 1 | 1 . Core . | . . Reactor . | . . Propulsion 2 | 2 . Treads . | . . Leg 2 | 2 . Wheel . | . . Hover . | . . Flight . | . . Utility 7 | . 7 Device 2 | . 2 Storage 3 | . 3 Processor 1 | . 1 Hackware . | . . Protection 1 | . 1 Artifact . | . . Weapon 6 | 2 4 Energy Gun 2 | 2 . Energy Cannon 1 | . 1 Ballistic Gun 1 | . 1 Ballistic Cannon . | . . Launcher 2 | . 2 Special Weapon . | . . Impact Weapon . | . . Slashing Weapon . | . . Piercing Weapon . | . . Special Melee Weapon . | . . Unidentified Prototypes . | . . Parts Lost 4 | . 4 Power . | . . Propulsion 2 | . 2 Utility . | . . Weapon 2 | . 2 Highest Loss Streak 4 | . 4 To Critical Strikes . | . . Average Slot Usage (%) 91 | . 91 Engine 14 | . 14 Leg 26 | . 26 Device 4 | . 4 Storage 6 | . 6 Processor 6 | . 6 Protection 5 | . 5 Energy Gun 3 | . 3 Ballistic Gun 11 | . 11 Launcher 10 | . 10 Naked Turns . | . . Heaviest Build 30 | 6 30 Greatest Support 20 | 20 20 Greatest Overweight (x) 2 | . 2 Average Overweight (x) . | . . Largest Inventory Capacity 15 | 5 15 Average Capacity 5 | 5 5 Most Carried 5 | 2 5 Average Carried 2 | . 2 Final Capacity 5 | 5 5 Final Carried 4 | . 4 Class Distribution -------------------- 100% | Mutant Dominant Class ---------------- Mutant | -10/Materials Resources | -11 -10 ----------- Run | Yrd Mat Matter Collected 315 | 250 65 Remotely . | . . Salvage Created 310 | 42 268 Parts 40 | 3 37 Haulers Intercepted . | . . Recyclers Shooed . | . . Parts Field Recycled . | . . Retrieved Matter . | . . Parts Self-Destructed . | . . Prevented . | . . Kills | -11 -10 ------- Run | Yrd Mat Combat Hostiles Destroyed 11 | 1 10 Guns 4 | 1 3 Cannons 2 | . 2 AOE 5 | . 5 Classes Destroyed 6 | 1 5 Builder 2 | . 2 Tunneler 1 | . 1 Mechanic 1 | . 1 Watcher 3 | . 3 Swarmer 3 | . 3 Grunt 8 | 1 7 Best Kill Streak 6 | 1 6 Combat Bots Only 3 | 1 3 Max Kills in Single Turn 2 | 1 2 Gunslinging 1 | . 1 Exploded 1 | . 1 Melee . | . . Uniques/NPCs Destroyed . | . . Combat | -11 -10 -------- Run | Yrd Mat Hostile Shots Fired 97 | 3 94 Missed 31 | . 31 Damage Taken 755 | 31 724 Core 250 | 10 240 Absorbed by Shields . | . . Redirected to Shielding 6 | . 6 Regen/Repaired (Parts) 20 | . 20 Core Remaining (%) 96 | 96 . Volleys Fired 48 | 2 46 Largest 2 | 2 2 Hottest 80 | 80 80 Shots Fired 78 | 4 74 Gun 47 | 4 43 Cannon 10 | . 10 Launcher 21 | . 21 Special . | . . Kinetic 29 | . 29 Thermal 19 | 2 17 Explosive 21 | . 21 Electromagnetic 9 | 2 7 Robot Hit Streak 6 | 1 6 Robot Miss Streak 5 | 1 5 Penetration Max . | . . Secondary Targets 1 | . 1 Max Gunslinging Chain 1 | . 1 Shots Hit Robots 37 | 2 35 Core Hits 32 | 2 30 Critical Kills . | . . Critical Parts Destroyed . | . . Critical Strikes 1 | . 1 Corrupt 1 | . 1 Melee Attacks . | . . Impact . | . . Slashing . | . . Piercing . | . . Sneak Attacks . | . . Combat Hostiles . | . . Follow-up Attacks . | . . Damage Inflicted 1100 | 25 1075 Guns 176 | 25 151 Cannons 157 | . 157 Explosions 767 | . 767 Melee . | . . Ramming . | . . Kinetic 67 | . 67 Thermal 200 | . 200 Explosive 767 | . 767 Electromagnetic 66 | 25 41 Impact . | . . Slashing . | . . Piercing . | . . Highest Corruption . | . . Average Corruption . | . . Corruption Purged . | . . Corruption Blocked . | . . Overload Shots . | . . Overflow Damage 38 | . 38 Projectiles . | . . Explosions 38 | . 38 Melee . | . . Knockbacks . | . . Impact . | . . Kinetic . | . . Secondary . | . . Self-Inflicted Damage 51 | . 51 Shots 4 | . 4 Rammed . | . . Targets Rammed . | . . Kicked . | . . Crushed . | . . Highest Temperature 273 | 42 273 Average Temperature 47 | 22 49 Received Heat Transfer 315 | 18 297 Siege Activations . | . . Robots Corrupted . | . . Combat Hostiles . | . . Parts Fried . | . . Impact Corruptions . | . . Robots Melted . | . . Combat Hostiles . | . . Parts Melted . | . . Heat Transferred 433 | . 433 Parts Sabotaged . | . . Parts Stolen . | . . Parts Stripped . | . . Power Chain Reactions . | . . Alert | -11 -10 ------- Run | Yrd Mat Peak Influence 270 | 20 270 Initial 13 | . 13 Average 168 | 5 187 Maximum Alert Level 1 | . 1 Low Security (%) 49 | 100 43 Level 1 50 | . 56 Level 2 . | . . Level 3 . | . . Level 4 . | . . Level 5 . | . . High Security . | . . Max Security . | . . Squads Dispatched 3 | . 3 Investigation 3 | . 3 Extermination . | . . Reinforcement . | . . Assault . | . . Garrison . | . . Intercept . | . . Searches Triggered . | . . Construction Impeded . | . . Haulers Reinforced . | . . Active Scanning Responses . | . . Cargo Convoy Interrupts . | . . Stealth | -11 -10 --------- Run | Yrd Mat Distress Signals . | . . Communications Jammed . | . . Distress Signals . | . . Times Spotted 18 | 1 17 Peak Tracking Total 4 | 1 4 Tactical Retreats . | . . Traps | -11 -10 ------- Run | Yrd Mat Traps Triggered 3 | . 3 Indirectly . | . . Trap Hack Attempts . | . . Triggered . | . . Disarmed . | . . Reprogrammed . | . . Reused . | . . Traps Extracted . | . . Installed . | . . Triggered . | . . Machines | -11 -10 ---------- Run | Yrd Mat Machines Disabled 1 | . 1 Max in Single Turn 1 | . 1 Machines Repaired . | . . Machines Dismantled . | . . Machines Sabotaged . | . . Overloaded Fab Kills . | . . Hacking | -11 -10 --------- Run | Yrd Mat Machines Accessed 6 | . 6 Terminals 4 | . 4 Fabricators . | . . Repair Stations 1 | . 1 Recycling Units 1 | . 1 Scanalyzers . | . . Garrison Access . | . . Total Hacks 19 | . 19 Successful 12 | . 12 Failed 7 | . 7 Catastrophic 1 | . 1 Database Lockouts . | . . Manual 1 | . 1 Terminals 15 | . 15 Fabricators . | . . Repair Stations 3 | . 3 Recycling Units 1 | . 1 Scanalyzers . | . . Garrison Access . | . . Terminal Hacks 9 | . 9 Record 4 | . 4 Level Access Points 1 | . 1 Dispatch Records 1 | . 1 Surveillance Status 1 | . 1 Registered Components 1 | . 1 Zone Layout 1 | . 1 Fabricator Hacks . | . . Repair Station Hacks 3 | . 3 Scan Component 1 | . 1 Repair 1 | . 1 Refit 1 | . 1 Recycling Unit Hacks . | . . Scanalyzer . | . . Garrison Access Hacks . | . . Unauthorized Hacks . | . . Terminals . | . . Fabricators . | . . Repair Stations . | . . Recycling Units . | . . Scanalyzers . | . . Garrison Access . | . . Data Cores Recovered . | . . Used . | . . Hacking Detections 5 | . 5 Full Trace Events 1 | . 1 Feedback Events . | . . Feedback Blocked . | . . Robot Schematics Acquired . | . . Robots Built . | . . Authchips . | . . Time . | . . Total Robot Build Rating . | . . Part Schematics Acquired . | . . Parts Built . | . . Authchips . | . . Time . | . . Total Part Build Rating . | . . Parts Repaired 1 | . 1 Time 26 | . 26 Parts Recycled . | . . Recycled Matter . | . . Retrieved Matter . | . . Retrieved Components . | . . Parts Scanalyzed . | . . Part Schematics Acquired . | . . Parts Damaged . | . . Bothacking | -11 -10 ------------ Run | Yrd Mat Used RIF Installer . | . . Robots Hacked . | . . Non-combat . | . . Combat . | . . Robot Hacks Applied . | . . Relay Couplers Released . | . . Fabnet Peak Effective % . | . . Robots Rewired . | . . Allies Hacked . | . . Hacks Repelled . | . . Allies | -11 -10 -------- Run | Yrd Mat Total Allies . | . . Largest Group . | . . Highest-Rated Group . | . . Highest-Rated Ally . | . . Total Orders . | . . Ally Attacks . | . . Total Damage . | . . Kills . | . . Allies Corrupted . | . . Allies Melted . | . . Intel | -11 -10 ------- Run | Yrd Mat Robot Analysis Total . | . . Derelict Logs Recovered . | . . Drone Launches . | . . Drone Recoveries . | . . Exploration | -11 -10 ------------- Run | Yrd Mat Turns Passed 931 | 97 834 Spaces Moved 641 | 80 561 Core 30 | 21 9 Treads . | . . Legs 611 | 59 552 Wheels . | . . Hover . | . . Flight . | . . Fastest Speed 50 | 50 100 Average Speed 118 | 101 120 Slowest Speed 190 | 120 190 Overloaded Moves . | . . Propulsion Burnouts . | . . Robots Hopped . | . . Cave-ins Triggered . | . . Exploration Rate (%) 41 | 6 77 Regions Visited 1 Branch Regions . Pre-discovered Areas . | . . Known Exits Taken . | . . Unknown Exits Taken 1 | 1 . Scrap Searched . | . . Spaces Dug 6 | . 6 Terrain Destroyed 117 | . 117 Melee . | . . Projectile . | . . AOE 117 | . 117 Terrain Rammed . | . . Walls Destroyed . | . . Machines Disabled . | . . Actions | -11 -10 --------- Run | Yrd Mat Total 745 | 91 654 Wait 16 | . 16 Move 640 | 79 561 Hop . | . . Pick Up 17 | 5 12 Fast Attach . | . . Attach 14 | 5 9 Detach 3 | . 3 Swap 2 | . 2 Drop 5 | . 5 Fire 48 | 2 46 Melee . | . . Ram . | . . Kick . | . . Crush . | . . Escape Stasis . | . . Rewire . | . . Trap . | . . Miscellaneous . | . . Route ------- -11/Scrapyard -10/Materials (discovered 4 exits: *Mat x3 / [*Min]) History --------- Turn | Location | Event 2 | -11/Scrapyard | Met Revision 17 62 | -11/Scrapyard | Discovered new exit (range 8) 98 | -11/Scrapyard | Entered Materials 299 | -10/Materials | Repaired Grenade Launcher 323 | -10/Materials | Build established: Mutant 339 | -10/Materials | Discovered new exit (range 5) 347 | -10/Materials | Identified exit to Materials 475 | -10/Materials | Discovered new exit (range 11) 885 | -10/Materials | Core integrity fell below 50% 922 | -10/Materials | Core integrity fell below 20% 932 | -10/Materials | Destroyed by G-34 Mercenary with Small Laser Last Messages --------------- 00644_ Acquired Structural Scanner. 00645_ Dropped Core Shielding. 00664_ Acquired Targeting Computer. 00729_ Dropped Sensor Array. 00753_ Acquired Beam Cannon. 00802_ R-06 Scavenger collects Sensor Array. 00814_ Triggered Alarm Trap. 00814_ An alarm sounds. 00814_ ALERT: Alarm triggered, dispatching investigation squad. [Achievement: Oops] 00876_ Electrolysis Chamber disabled. 00881_ Grenade Launcher destroyed. 00892_ Aluminum Leg destroyed. 00894_ Lgt. Assault Rifle destroyed. 00902_ Aluminum Leg destroyed. 00905_ Acquired 16 matter. 00908_ Acquired 8 matter. 00920_ G-34 Mercenary destroyed. [Achievement: First Step to Greatness] Map ----- +----------------------------------------------------+ | ??????????# "Y" # " # """"""" | | ??????????# " " + T + """"""" | | ??????????# # " # | | ??????????# # # | | ??????????# # # """"""" | | ??????????######## ####### """"""" | | ?????????????????# ####### """"""" | | ?????????????????# #????## """"""" | | ?????????????????##+###????## """"""" | | ??????????????????# #??????## | | ?????????????????## #??????## | | ??????????? ??## ###????## | | ?????????# """## ######### #### | | ########## """## ## # ###+######## | | # # """# # """ # # ! | | # !!! # """# # """ # # | | # !!! # + # """ + # """ """ | | # !! # """# # # # ] """ "" | | # # """# # # # """ """ | | # """ # """# #####+## # | | # """ # """# ### ############ | | # """ # # ### ############ | | # ######### ### ##"""""""#?? | | #####+####??????## t### ##" !"! "#?? | | ??# #???????## *%[=! ##" "### | | ??# !########## @ *g! | | ??# # ]! # g < | | ??# # ] T # | | ??# # [ # [[ ###### ### | | ??## ## # [ ###############? | | ???# ## + ##???##########? | | ???# ## """ # ##?????????????? | | ???# ## """ # ##?????????????? | | ???# ## """ ###### ##?????????????? | | ???# ## # ## ##?????????????? | | ??## ############### ##?????????????? | | ??# ############### ##?????????????? | | ??# ##????????????? | | ??# ##????????????? | | ??# [ ##????????????? | | ??# ##########+############????????????? | | ??## = ## # #### #########????????????? | | ???#= *# # #????????????????????? | | ???# # [ # #????????????????????? | | ???# + # " " #????????????????????? | | ???# # "T" # "R" #????????????????????? | | ???# < # # """ #????????????????????? | | ???# ################????????????????????? | | ???#####???????????????????????????????????? | | ???????????????????????????????????????????? | +----------------------------------------------------+ Best States ------------- Heat Dissipation 25 Energy Generation 10 Energy Capacity 125 Matter Stores 300 Matter Capacity 450 Sight Range 16 Robot Scan Range 14 Terrain Scan Density 10 Armor Coverage 80 Core Shielding 20 Evasion (%) 55 Item Schematics ----------------- None Robot Schematics ------------------ None Fabricated ------------ Nothing Alien Tech Used ----------------- None Achievements -------------- First Step to Greatness Oops Part-time Mechanic Storm Trooper Challenges ------------ None Game ------ Seed MolecularGunMatter Manual? 0 Play Time 00:21:22 Cumulative 0.3 hours Start 2024.05.02 @ 15:53:43 End 2024.05.02 @ 16:14:59 Sessions 1 Manual Loads 0 Difficulty Rogue Special Mode None Game No. 1 Rogue 1 Adventurer 0 Explorer 0 Win Type - Total 0 Types 0/0/0/0/0/0/0/0/0 Lore% 0 Gallery% 1 Achievement% 1 Wizard Run 0 Options --------- Layout 1 ASCII 0 Keyboard 0 Movement Numpad Keybinds 0 Fullscreen 1 Font 24/Smallcaps Map View 50x35 Zoom Use 0% Tactical HUD 1 Map Filters NONE Filters NONE Steam 1 RUN: c71932da-1711-44ee-a6f5-bf64290a25fb